{"text_format":"3","workbook":"xlsx","n_sheets":1,"sheets":["Piano Economico "],"not_rendered":{"defined_names":43,"comments":1},"read":"whole","date_system":"1900"}

{"sheet":"Piano Economico ","index":0,"n_rows":58,"n_cols":18,"rows_kept":58,"merged":[[0,1,2,8],[3,17,4,18],[4,1,5,2],[4,3,5,8],[9,17,11,18],[10,1,11,2],[10,3,11,3],[10,4,10,8],[11,13,11,14],[12,1,12,2],[12,13,15,14],[13,9,15,9],[16,1,16,2],[17,9,19,9],[17,13,17,14],[18,13,21,14],[20,1,20,2],[20,4,20,5],[21,4,21,5],[21,9,23,9],[22,4,22,5],[23,4,23,5],[23,13,23,14],[24,1,24,2],[24,13,25,14],[25,9,27,9],[28,1,28,2],[28,4,28,5],[29,4,29,5],[29,9,31,9],[30,4,30,5],[31,4,31,5],[32,1,32,2],[32,4,32,5],[33,4,33,5],[33,9,35,9],[34,4,34,5],[35,4,35,5],[36,1,36,2],[41,2,41,9],[42,2,42,9],[43,2,43,9],[44,2,44,9],[46,2,46,9],[47,2,47,9],[48,2,48,9],[49,2,49,9],[50,2,50,9],[51,2,51,9],[52,2,52,9],[53,2,53,9],[54,2,54,9],[55,2,55,9],[56,2,56,9],[57,2,57,9]]}
[null,"Istruzioni: \n- compilare le celle evidenziate in giallo;\n- nella compilazione delle spese aggiungere, se necessario, ulteriori righe.\n\nSi invita alla coerenza fra i dati inseriti nel presente file e quelli caricati in piattaforma"]
[]
[]
[null,"ALLEGATO D12.c - Format Piano economico di dettaglio",{"$nulls":10},"PIANO DI SPESA","Totale costi previsti (A+B)","Quota Contributo FC-RL (A)","Quota Cofinanziamento (B)",null,"NOTA BENE: IL PARTNER E' UN SOGGETTO CHE SOSTIENE DEI COSTI (COFINANZIA PARTE DEL PROGETTO) E CHE PERCEPISCE PARTE DEL CONTRIBUTO"]
[null,"Denominazione Ente",{"$nulls":10},"Ente capofila",{"$f":"SUM(O5:P5)","v":0},0,0]
[{"$nulls":12},"Partner 1",{"$f":"SUM(O6:P6)","v":0},0,0]
[{"$nulls":12},"Partner n",{"$f":"SUM(O7:P7)","v":0},0,0]
[{"$nulls":12},"Totale ",{"$f":"SUM(N5:N7)","v":0},{"$f":"SUM(O5:O7)","v":0},{"$f":"SUM(P5:P7)","v":0}]
[]
[{"$nulls":17},"N.B. SE UNA O PIU' CELLA DELLA TABELLA \"PIANO DI SPESA\" DIVENTA ROSSA VERIFICARE IL RISPETTO DEI REQUISITI FORMALI DEL BANDO"]
[null,"VOCI DI SPESA",null,"V o N\n(solo per voce A5)","DETTAGLI SULLE SPESE",{"$nulls":4},"COSTI/ONERI",{"$nulls":3},"VINCOLI"]
[{"$nulls":6},"Ente Capofila","Partner 1","Partner n","Importo Complessivo",{"$nulls":3},"A05 - Personale strutturato"]
[null,"A05 - Personale strutturato",null,null,"Num. ORE","Costo unitario",{"$f":"SUM(G14:G16)","v":0},{"$f":"SUM(H14:H16)","v":0},{"$f":"SUM(I14:I16)","v":0},{"$f":"SUM(G13:I13)","v":0},{"$nulls":3},"PERSONALE DIPENDENTE GIA' IN FORZA AL PARTENARIATO AMMISSIBILE NEL LIMITE DEL 25% DEL COSTO TOTALE"]
[null,"A05","Qualifica personale 1"]
[null,{"$f":"+B14","v":"A05"},"Qualifica personale 2"]
[null,{"$f":"+B14","v":"A05"},"Qualifica personale n"]
[null,"A06 - Personale non strutturato",null,null,"Num. ORE","Costo unitario",{"$f":"SUM(G18:G20)","v":0},{"$f":"SUM(H18:H20)","v":0},{"$f":"SUM(I18:I20)","v":0},{"$f":"SUM(G17:I17)","v":0}]
[null,"A06","Qualifica personale 1",{"$nulls":10},"A08 - Materiale di consumo"]
[null,{"$f":"+B18","v":"A06"},"Qualifica personale 2",{"$nulls":10},"MATERIALE DI CONSUMO, COMPRENSIVO DELLE SPESE PER ACQUISTO DI MATERIALE TECNICO E SPORTIVO, NEL LIMITE DEL 25% DEL COSTO TOTALE DEL PROGETTO"]
[null,{"$f":"+B18","v":"A06"},"Qualifica personale n"]
[null,"A07 - Prestazioni professionali di terzi",null,null,"= = =",null,{"$f":"SUM(G22:G24)","v":0},{"$f":"SUM(H22:H24)","v":0},{"$f":"SUM(I22:I24)","v":0},{"$f":"SUM(G21:I21)","v":0}]
[null,"A07","Prestazione 1",null,"= = ="]
[null,{"$f":"+B22","v":"A07"},"Prestazione 2",null,"= = ="]
[null,{"$f":"+B22","v":"A07"},"Prestazione n",null,"= = =",{"$nulls":8},"A09 - Spese correnti"]
[null,"A08 - Materiale di consumo",null,null,"Quantità","Costo unitario",{"$f":"SUM(G26:G28)","v":0},{"$f":"SUM(H26:H28)","v":0},{"$f":"SUM(I26:I28)","v":0},{"$f":"SUM(G25:I25)","v":0},{"$nulls":3},"SPESE  CORRENTI A9 NEL LIMITE DEL 5% DEL COSTO TOTALE"]
[null,"A08 ","Descrizione spesa 1"]
[null,{"$f":"+B26","v":"A08 "},"Descrizione spesa 2"]
[null,{"$f":"+B26","v":"A08 "},"Descrizione spesa n"]
[null,"A09 - Spese correnti",null,null,"= = =",null,{"$f":"SUM(G30:G32)","v":0},{"$f":"SUM(H30:H32)","v":0},{"$f":"SUM(I30:I32)","v":0},{"$f":"SUM(G29:I29)","v":0}]
[null,"A09","Descrizione spesa 1",null,"= = ="]
[null,{"$f":"+B30","v":"A09"},"Descrizione spesa 2",null,"= = ="]
[null,{"$f":"+B30","v":"A09"},"Descrizione spesa n",null,"= = ="]
[null,"A10 - Altre spese GESTIONALI ",null,null,"= = =",null,{"$f":"SUM(G34:G36)","v":0},{"$f":"SUM(H34:H36)","v":0},{"$f":"SUM(I34:I36)","v":0},{"$f":"SUM(G33:I33)","v":0}]
[null,"A10","Descrizione spesa 1",null,"= = ="]
[null,{"$f":"+B34","v":"A10"},"Descrizione spesa 2",null,"= = ="]
[null,{"$f":"+B34","v":"A10"},"Descrizione spesa n",null,"= = ="]
[null,"TOTALE",{"$nulls":4},{"$f":"+G33+G29+G25+G21+G17+G13","v":0},{"$f":"+H33+H29+H25+H21+H17+H13","v":0},{"$f":"+I33+I29+I25+I21+I17+I13","v":0},{"$f":"+J33+J29+J25+J21+J17+J13","v":0}]
[]
[]
[]
[null,null,"RICAVI/PROVENTI"]
[null,null,"La somma di B1, B2, B3, B4, B5 deve corrispondere al totale dei costi di progetto indicati nella tabella precedente",{"$nulls":7},"€ "]
[null,"B1","Risorse finanziarie proprie"]
[null,null,"Specificare se le risorse finanziarie apportate al progetto siano già disponibili (cassa e/o conto corrente) o lo diventeranno grazie a flussi finanziari futuri (esempio cessione di crediti, vendita immobili, ecc)"]
[null,null,"Campo testo per inserire le informazioni di dettaglio"]
[]
[null,"B2","Prestiti da banca e altri soggetti"]
[null,null,"Specificare l'operatore bancario che garantià il prestito indicando l'ammontare richiesto e la forma tecnica del finanziamento (fido, mutuo, ecc)"]
[null,null,"Campo testo per inserire le informazioni di dettaglio"]
[null,"B3","Proventi da attività del progetto"]
[null,null,"Fornire dettagli sulla natura e sulla tipologia dei proventi (es. quote partecipazione, ecc)"]
[null,null,"Campo testo per inserire le informazioni di dettaglio"]
[null,"B4","Contributi e finanziamenti (senza obbligo di rimborso) da soggetti pubblici e privati"]
[null,null,"Se il finanziamento non è stato ancora acquisito, occorre specificare le modalità con cui verrà attivata la raccolta fondi. \nSe il finanziamento è stato chiesto e non ancora acquisito specificare il potenziale donatore.\nSe il finanziamento è stato già acquisito, occorre allegare copia del documento attestante il contributo ottenuto. (ad esempio convenzione o atto equivalente)."]
[null,null,"Campo testo per inserire le informazioni di dettaglio"]
[null,"B5","Fondazione Cariplo/ Regione Lombardia"]
[null,null,"Indicare la quota di contributo richiesta a Fondazione Cariplo e a Regione Lombardia"]
[null,null,"Campo testo per inserire le informazioni di dettaglio"]